{"text_format":"1","workbook":"xlsx","n_sheets":2,"sheets":["Date de semestre","2nde 1"],"not_rendered":{"charts":0,"images":0,"macros":1,"external_links":0,"defined_names":42,"comments":0,"pivot_tables":0},"unopened":[],"bounds":{"document_bytes":16777216,"sheet_cells":100000,"rows_first":2000,"rows_last":500,"rows_between":2000,"halvings":0,"cell_chars":16384,"cell_head_chars":4096},"cells_cut":0,"cells_raw":0,"read":"whole","date_system":"1900"}

{"sheet":"Date de semestre","index":0,"n_rows":3,"n_cols":9,"rows_kept":3,"cut":false,"hidden":false,"merged":[[0,3,0,4],[0,6,0,7],[1,6,1,7],[2,3,2,4],[2,6,2,7],[1,3,1,4]]}
["Date premier trimestre",null,null,"2016-09-01",null,{"$f":"D1","v":42614},"2016-12-31",null,{"$f":"G1","v":42735}]
["Date second semestre",null,null,"2017-01-01",null,{"$f":"D2","v":42736},"2017-03-31",null,{"$f":"G2","v":42825}]
["Date troisième trimestre",null,null,"2017-04-01",null,42826,"2017-06-30",null,42916]

{"sheet":"2nde 1","index":1,"n_rows":49,"n_cols":21,"rows_kept":49,"cut":false,"hidden":false,"merged":[[3,9,4,10],[3,12,4,12],[3,14,4,14],[0,14,0,20],[46,9,46,10],[0,12,0,13],[1,14,1,20],[2,16,2,20],[1,12,1,13],[3,13,4,13],[1,3,2,10],[46,0,46,2],[46,3,46,4],[46,5,46,6],[46,7,46,8],[1,0,4,0],[1,1,3,1],[1,2,3,2],[3,3,4,4],[3,5,4,6],[3,7,4,8],[55,5,55,6],[47,3,47,4],[47,5,47,6],[47,7,47,8],[47,9,47,10],[48,3,48,4],[48,5,48,6],[48,7,48,8],[48,9,48,10],[50,5,50,6],[51,5,51,6],[52,5,52,6],[53,5,53,6],[54,5,54,6]]}
[null,null,null,null,null,null,null,null,null,null,null,null,"Date du devoir",null,"2016-09-15"]
[null,null,null,"Moyenne par élève",null,null,null,null,null,null,null,null,"Titre du devoir"]
[null,null,null,null,null,null,null,null,null,null,null,null,null,null,null,{"$f":"IF(AND(O1>='Date de semestre'!$F$1,O1<='Date de semestre'!$I$1),1,(IF(AND(O1>='Date de semestre'!$F$2,O1<='Date de semestre'!$I$2),2,(IF(AND(O1>='Date de semestre'!$F$3,O1<='Date de semestre'!$I$3),3,\"Faux\")))))","v":1}]
[null,null,null,"Annuelle",null,"Trim 1",null,"Trim 2",null,"Trim 3",null,null,null,"Note","Rang","Note sur",null,null,"Coeff",{"$f":"IF(P3=1,\"Coef 1\",(IF(P3=2,\"Coef 2\",(IF(P3=\"Coef 3\",\"\")))))","v":"Coef 1"},{"$f":"IF(P3=1,\"Trim 1\",(IF(P3=2,\"Trim 2\",(IF(P3=\"Trim 3\",\"\")))))","v":"Trim 1"}]
[null,"Nom","Prénom"]
[1,null,null,{"$f":"IFERROR((SUMIF(Rangées_notes_Seconde_1,\"Note\",a_1))/(SUMIF(Rangées_notes_Seconde_1,\"Coeff\",a_1)),\"\")","v":""},{"$f":"IFERROR(RANK(D6,D$6:D$45),\"\")","v":""},{"$f":"IFERROR((SUMIF(Rangées_notes_Seconde_1,\"Trim 1\",a_1))/(SUMIF(Rangées_notes_Seconde_1,\"Coef 1\",a_1)),\"\")","v":""},{"$f":"IFERROR(RANK(F6,$F$6:$F$45),\"\")","v":""},{"$f":"IFERROR((SUMIF(Rangées_notes_Seconde_1,\"Trim 2\",a_1))/(SUMIF(Rangées_notes_Seconde_1,\"Coef 2\",a_1)),\"\")","v":""},{"$f":"IFERROR(RANK(H6,$H$6:$H$45),\"\")","v":""},{"$f":"IFERROR((SUMIF(Rangées_notes_Seconde_1,\"Trim 3\",a_1))/(SUMIF(Rangées_notes_Seconde_1,\"Coef 3\",a_1)),\"\")","v":""},{"$f":"IFERROR(RANK(J6,$J$6:$J$45),\"\")","v":""},null,null,{"$f":"IF(P6=\"\",\"\",MROUND(IF(M6=\"Présent\",P6*20/P$5,\"0\"),0.5))","v":""},{"$f":"IF(M6=\"présent\",IFERROR(RANK(N6,N$6:N$45),\"\"),\"\")","v":""},null,null,null,{"$f":"IF(P6=\"\",\"\",IF(EXACT(M6,\"Absent\"),\"0\",S$5))","v":""},{"$f":"S6","v":""},{"$f":"IF(IFERROR(N6*S6,\"\")=0,\"0\",IFERROR(N6*S6,\"\"))","v":""}]
[2,null,null,{"$f":"IFERROR((SUMIF(Rangées_notes_Seconde_1,\"Note\",a_2))/(SUMIF(Rangées_notes_Seconde_1,\"Coeff\",a_2)),\"\")","v":""},"",{"$f":"IFERROR((SUMIF(Rangées_notes_Seconde_1,\"Trim 1\",a_2))/(SUMIF(Rangées_notes_Seconde_1,\"Coef 1\",a_2)),\"\")","v":""},"",{"$f":"IFERROR((SUMIF(Rangées_notes_Seconde_1,\"Trim 2\",a_2))/(SUMIF(Rangées_notes_Seconde_1,\"Coef 2\",a_2)),\"\")","v":""},"",{"$f":"IFERROR((SUMIF(Rangées_notes_Seconde_1,\"Trim 3\",a_2))/(SUMIF(Rangées_notes_Seconde_1,\"Coef 3\",a_2)),\"\")","v":""},"",null,null,{"$f":"IF(P7=\"\",\"\",MROUND(IF(M7=\"Présent\",P7*20/P$5,\"0\"),0.5))","v":""},{"$f":"IF(M7=\"présent\",IFERROR(RANK(N7,N$6:N$45),\"\"),\"\")","v":""},null,null,null,{"$f":"IF(P7=\"\",\"\",IF(EXACT(M7,\"Absent\"),\"0\",S$5))","v":""},{"$f":"S7","v":""},{"$f":"IF(IFERROR(N7*S7,\"\")=0,\"0\",IFERROR(N7*S7,\"\"))","v":""}]
[3,null,null,{"$f":"IFERROR((SUMIF(Rangées_notes_Seconde_1,\"Note\",a_3))/(SUMIF(Rangées_notes_Seconde_1,\"Coeff\",a_3)),\"\")","v":""},"",{"$f":"IFERROR((SUMIF(Rangées_notes_Seconde_1,\"Trim 1\",a_3))/(SUMIF(Rangées_notes_Seconde_1,\"Coef 1\",a_3)),\"\")","v":""},"",{"$f":"IFERROR((SUMIF(Rangées_notes_Seconde_1,\"Trim 2\",a_3))/(SUMIF(Rangées_notes_Seconde_1,\"Coef 2\",a_3)),\"\")","v":""},"",{"$f":"IFERROR((SUMIF(Rangées_notes_Seconde_1,\"Trim 3\",a_3))/(SUMIF(Rangées_notes_Seconde_1,\"Coef 3\",a_3)),\"\")","v":""},"",null,null,"","",null,null,null,"","",""]
[4,null,null,{"$f":"IFERROR((SUMIF(Rangées_notes_Seconde_1,\"Note\",a_4))/(SUMIF(Rangées_notes_Seconde_1,\"Coeff\",a_4)),\"\")","v":""},"",{"$f":"IFERROR((SUMIF(Rangées_notes_Seconde_1,\"Trim 1\",a_4))/(SUMIF(Rangées_notes_Seconde_1,\"Coef 1\",a_4)),\"\")","v":""},"",{"$f":"IFERROR((SUMIF(Rangées_notes_Seconde_1,\"Trim 2\",a_4))/(SUMIF(Rangées_notes_Seconde_1,\"Coef 2\",a_4)),\"\")","v":""},"",{"$f":"IFERROR((SUMIF(Rangées_notes_Seconde_1,\"Trim 3\",a_4))/(SUMIF(Rangées_notes_Seconde_1,\"Coef 3\",a_4)),\"\")","v":""},"",null,null,"","",null,null,null,"","",""]
[5,null,null,{"$f":"IFERROR((SUMIF(Rangées_notes_Seconde_1,\"Note\",a_5))/(SUMIF(Rangées_notes_Seconde_1,\"Coeff\",a_5)),\"\")","v":""},"",{"$f":"IFERROR((SUMIF(Rangées_notes_Seconde_1,\"Trim 1\",a_5))/(SUMIF(Rangées_notes_Seconde_1,\"Coef 1\",a_5)),\"\")","v":""},"",{"$f":"IFERROR((SUMIF(Rangées_notes_Seconde_1,\"Trim 2\",a_5))/(SUMIF(Rangées_notes_Seconde_1,\"Coef 2\",a_5)),\"\")","v":""},"",{"$f":"IFERROR((SUMIF(Rangées_notes_Seconde_1,\"Trim 3\",a_5))/(SUMIF(Rangées_notes_Seconde_1,\"Coef 3\",a_5)),\"\")","v":""},"",null,null,"","",null,null,null,"","",""]
[6,null,null,{"$f":"IFERROR((SUMIF(Rangées_notes_Seconde_1,\"Note\",a_6))/(SUMIF(Rangées_notes_Seconde_1,\"Coeff\",a_6)),\"\")","v":""},"",{"$f":"IFERROR((SUMIF(Rangées_notes_Seconde_1,\"Trim 1\",a_6))/(SUMIF(Rangées_notes_Seconde_1,\"Coef 1\",a_6)),\"\")","v":""},"",{"$f":"IFERROR((SUMIF(Rangées_notes_Seconde_1,\"Trim 2\",a_6))/(SUMIF(Rangées_notes_Seconde_1,\"Coef 2\",a_6)),\"\")","v":""},"",{"$f":"IFERROR((SUMIF(Rangées_notes_Seconde_1,\"Trim 3\",a_6))/(SUMIF(Rangées_notes_Seconde_1,\"Coef 3\",a_6)),\"\")","v":""},"",null,null,"","",null,null,null,"","",""]
[7,null,null,{"$f":"IFERROR((SUMIF(Rangées_notes_Seconde_1,\"Note\",a_7))/(SUMIF(Rangées_notes_Seconde_1,\"Coeff\",a_7)),\"\")","v":""},"",{"$f":"IFERROR((SUMIF(Rangées_notes_Seconde_1,\"Trim 1\",a_7))/(SUMIF(Rangées_notes_Seconde_1,\"Coef 1\",a_7)),\"\")","v":""},"",{"$f":"IFERROR((SUMIF(Rangées_notes_Seconde_1,\"Trim 2\",a_7))/(SUMIF(Rangées_notes_Seconde_1,\"Coef 2\",a_7)),\"\")","v":""},"",{"$f":"IFERROR((SUMIF(Rangées_notes_Seconde_1,\"Trim 3\",a_7))/(SUMIF(Rangées_notes_Seconde_1,\"Coef 3\",a_7)),\"\")","v":""},"",null,null,"","",null,null,null,"","",""]
[8,null,null,{"$f":"IFERROR((SUMIF(Rangées_notes_Seconde_1,\"Note\",a_8))/(SUMIF(Rangées_notes_Seconde_1,\"Coeff\",a_8)),\"\")","v":""},"",{"$f":"IFERROR((SUMIF(Rangées_notes_Seconde_1,\"Trim 1\",a_8))/(SUMIF(Rangées_notes_Seconde_1,\"Coef 1\",a_8)),\"\")","v":""},"",{"$f":"IFERROR((SUMIF(Rangées_notes_Seconde_1,\"Trim 2\",a_8))/(SUMIF(Rangées_notes_Seconde_1,\"Coef 2\",a_8)),\"\")","v":""},"",{"$f":"IFERROR((SUMIF(Rangées_notes_Seconde_1,\"Trim 3\",a_8))/(SUMIF(Rangées_notes_Seconde_1,\"Coef 3\",a_8)),\"\")","v":""},"",null,null,"","",null,null,null,"","",""]
[9,null,null,{"$f":"IFERROR((SUMIF(Rangées_notes_Seconde_1,\"Note\",a_9))/(SUMIF(Rangées_notes_Seconde_1,\"Coeff\",a_9)),\"\")","v":""},"",{"$f":"IFERROR((SUMIF(Rangées_notes_Seconde_1,\"Trim 1\",a_9))/(SUMIF(Rangées_notes_Seconde_1,\"Coef 1\",a_9)),\"\")","v":""},"",{"$f":"IFERROR((SUMIF(Rangées_notes_Seconde_1,\"Trim 2\",a_9))/(SUMIF(Rangées_notes_Seconde_1,\"Coef 2\",a_9)),\"\")","v":""},"",{"$f":"IFERROR((SUMIF(Rangées_notes_Seconde_1,\"Trim 3\",a_9))/(SUMIF(Rangées_notes_Seconde_1,\"Coef 3\",a_9)),\"\")","v":""},"",null,null,"","",null,null,null,"","",""]
[10,null,null,{"$f":"IFERROR((SUMIF(Rangées_notes_Seconde_1,\"Note\",a_10))/(SUMIF(Rangées_notes_Seconde_1,\"Coeff\",a_10)),\"\")","v":""},"",{"$f":"IFERROR((SUMIF(Rangées_notes_Seconde_1,\"Trim 1\",a_10))/(SUMIF(Rangées_notes_Seconde_1,\"Coef 1\",a_10)),\"\")","v":""},"",{"$f":"IFERROR((SUMIF(Rangées_notes_Seconde_1,\"Trim 2\",a_10))/(SUMIF(Rangées_notes_Seconde_1,\"Coef 2\",a_10)),\"\")","v":""},"",{"$f":"IFERROR((SUMIF(Rangées_notes_Seconde_1,\"Trim 3\",a_10))/(SUMIF(Rangées_notes_Seconde_1,\"Coef 3\",a_10)),\"\")","v":""},"",null,null,"","",null,null,null,"","",""]
[11,null,null,{"$f":"IFERROR((SUMIF(Rangées_notes_Seconde_1,\"Note\",a_11))/(SUMIF(Rangées_notes_Seconde_1,\"Coeff\",a_11)),\"\")","v":""},"",{"$f":"IFERROR((SUMIF(Rangées_notes_Seconde_1,\"Trim 1\",a_11))/(SUMIF(Rangées_notes_Seconde_1,\"Coef 1\",a_11)),\"\")","v":""},"",{"$f":"IFERROR((SUMIF(Rangées_notes_Seconde_1,\"Trim 2\",a_11))/(SUMIF(Rangées_notes_Seconde_1,\"Coef 2\",a_11)),\"\")","v":""},"",{"$f":"IFERROR((SUMIF(Rangées_notes_Seconde_1,\"Trim 3\",a_11))/(SUMIF(Rangées_notes_Seconde_1,\"Coef 3\",a_11)),\"\")","v":""},"",null,null,"","",null,null,null,"","",""]
[12,null,null,{"$f":"IFERROR((SUMIF(Rangées_notes_Seconde_1,\"Note\",a_12))/(SUMIF(Rangées_notes_Seconde_1,\"Coeff\",a_12)),\"\")","v":""},"",{"$f":"IFERROR((SUMIF(Rangées_notes_Seconde_1,\"Trim 1\",a_12))/(SUMIF(Rangées_notes_Seconde_1,\"Coef 1\",a_12)),\"\")","v":""},"",{"$f":"IFERROR((SUMIF(Rangées_notes_Seconde_1,\"Trim 2\",a_12))/(SUMIF(Rangées_notes_Seconde_1,\"Coef 2\",a_12)),\"\")","v":""},"",{"$f":"IFERROR((SUMIF(Rangées_notes_Seconde_1,\"Trim 3\",a_12))/(SUMIF(Rangées_notes_Seconde_1,\"Coef 3\",a_12)),\"\")","v":""},"",null,null,"","",null,null,null,"","",""]
[13,null,null,{"$f":"IFERROR((SUMIF(Rangées_notes_Seconde_1,\"Note\",a_13))/(SUMIF(Rangées_notes_Seconde_1,\"Coeff\",a_13)),\"\")","v":""},"",{"$f":"IFERROR((SUMIF(Rangées_notes_Seconde_1,\"Trim 1\",a_13))/(SUMIF(Rangées_notes_Seconde_1,\"Coef 1\",a_13)),\"\")","v":""},"",{"$f":"IFERROR((SUMIF(Rangées_notes_Seconde_1,\"Trim 2\",a_13))/(SUMIF(Rangées_notes_Seconde_1,\"Coef 2\",a_13)),\"\")","v":""},"",{"$f":"IFERROR((SUMIF(Rangées_notes_Seconde_1,\"Trim 3\",a_13))/(SUMIF(Rangées_notes_Seconde_1,\"Coef 3\",a_13)),\"\")","v":""},"",null,null,"","",null,null,null,"","",""]
[14,null,null,{"$f":"IFERROR((SUMIF(Rangées_notes_Seconde_1,\"Note\",a_14))/(SUMIF(Rangées_notes_Seconde_1,\"Coeff\",a_14)),\"\")","v":""},"",{"$f":"IFERROR((SUMIF(Rangées_notes_Seconde_1,\"Trim 1\",a_14))/(SUMIF(Rangées_notes_Seconde_1,\"Coef 1\",a_14)),\"\")","v":""},"",{"$f":"IFERROR((SUMIF(Rangées_notes_Seconde_1,\"Trim 2\",a_14))/(SUMIF(Rangées_notes_Seconde_1,\"Coef 2\",a_14)),\"\")","v":""},"",{"$f":"IFERROR((SUMIF(Rangées_notes_Seconde_1,\"Trim 3\",a_14))/(SUMIF(Rangées_notes_Seconde_1,\"Coef 3\",a_14)),\"\")","v":""},"",null,null,"","",null,null,null,"","",""]
[15,null,null,{"$f":"IFERROR((SUMIF(Rangées_notes_Seconde_1,\"Note\",a_15))/(SUMIF(Rangées_notes_Seconde_1,\"Coeff\",a_15)),\"\")","v":""},"",{"$f":"IFERROR((SUMIF(Rangées_notes_Seconde_1,\"Trim 1\",a_15))/(SUMIF(Rangées_notes_Seconde_1,\"Coef 1\",a_15)),\"\")","v":""},"",{"$f":"IFERROR((SUMIF(Rangées_notes_Seconde_1,\"Trim 2\",a_15))/(SUMIF(Rangées_notes_Seconde_1,\"Coef 2\",a_15)),\"\")","v":""},"",{"$f":"IFERROR((SUMIF(Rangées_notes_Seconde_1,\"Trim 3\",a_15))/(SUMIF(Rangées_notes_Seconde_1,\"Coef 3\",a_15)),\"\")","v":""},"",null,null,"","",null,null,null,"","",""]
[16,null,null,{"$f":"IFERROR((SUMIF(Rangées_notes_Seconde_1,\"Note\",a_16))/(SUMIF(Rangées_notes_Seconde_1,\"Coeff\",a_16)),\"\")","v":""},"",{"$f":"IFERROR((SUMIF(Rangées_notes_Seconde_1,\"Trim 1\",a_16))/(SUMIF(Rangées_notes_Seconde_1,\"Coef 1\",a_16)),\"\")","v":""},"",{"$f":"IFERROR((SUMIF(Rangées_notes_Seconde_1,\"Trim 2\",a_16))/(SUMIF(Rangées_notes_Seconde_1,\"Coef 2\",a_16)),\"\")","v":""},"",{"$f":"IFERROR((SUMIF(Rangées_notes_Seconde_1,\"Trim 3\",a_16))/(SUMIF(Rangées_notes_Seconde_1,\"Coef 3\",a_16)),\"\")","v":""},"",null,null,"","",null,null,null,"","",""]
[17,null,null,{"$f":"IFERROR((SUMIF(Rangées_notes_Seconde_1,\"Note\",a_17))/(SUMIF(Rangées_notes_Seconde_1,\"Coeff\",a_17)),\"\")","v":""},"",{"$f":"IFERROR((SUMIF(Rangées_notes_Seconde_1,\"Trim 1\",a_17))/(SUMIF(Rangées_notes_Seconde_1,\"Coef 1\",a_17)),\"\")","v":""},"",{"$f":"IFERROR((SUMIF(Rangées_notes_Seconde_1,\"Trim 2\",a_17))/(SUMIF(Rangées_notes_Seconde_1,\"Coef 2\",a_17)),\"\")","v":""},"",{"$f":"IFERROR((SUMIF(Rangées_notes_Seconde_1,\"Trim 3\",a_17))/(SUMIF(Rangées_notes_Seconde_1,\"Coef 3\",a_17)),\"\")","v":""},"",null,null,"","",null,null,null,"","",""]
[18,null,null,{"$f":"IFERROR((SUMIF(Rangées_notes_Seconde_1,\"Note\",a_18))/(SUMIF(Rangées_notes_Seconde_1,\"Coeff\",a_18)),\"\")","v":""},"",{"$f":"IFERROR((SUMIF(Rangées_notes_Seconde_1,\"Trim 1\",a_18))/(SUMIF(Rangées_notes_Seconde_1,\"Coef 1\",a_18)),\"\")","v":""},"",{"$f":"IFERROR((SUMIF(Rangées_notes_Seconde_1,\"Trim 2\",a_18))/(SUMIF(Rangées_notes_Seconde_1,\"Coef 2\",a_18)),\"\")","v":""},"",{"$f":"IFERROR((SUMIF(Rangées_notes_Seconde_1,\"Trim 3\",a_18))/(SUMIF(Rangées_notes_Seconde_1,\"Coef 3\",a_18)),\"\")","v":""},"",null,null,"","",null,null,null,"","",""]
[19,null,null,{"$f":"IFERROR((SUMIF(Rangées_notes_Seconde_1,\"Note\",a_19))/(SUMIF(Rangées_notes_Seconde_1,\"Coeff\",a_19)),\"\")","v":""},"",{"$f":"IFERROR((SUMIF(Rangées_notes_Seconde_1,\"Trim 1\",a_19))/(SUMIF(Rangées_notes_Seconde_1,\"Coef 1\",a_19)),\"\")","v":""},"",{"$f":"IFERROR((SUMIF(Rangées_notes_Seconde_1,\"Trim 2\",a_19))/(SUMIF(Rangées_notes_Seconde_1,\"Coef 2\",a_19)),\"\")","v":""},"",{"$f":"IFERROR((SUMIF(Rangées_notes_Seconde_1,\"Trim 3\",a_19))/(SUMIF(Rangées_notes_Seconde_1,\"Coef 3\",a_19)),\"\")","v":""},"",null,null,"","",null,null,null,"","",""]
[20,null,null,{"$f":"IFERROR((SUMIF(Rangées_notes_Seconde_1,\"Note\",a_20))/(SUMIF(Rangées_notes_Seconde_1,\"Coeff\",a_20)),\"\")","v":""},"",{"$f":"IFERROR((SUMIF(Rangées_notes_Seconde_1,\"Trim 1\",a_20))/(SUMIF(Rangées_notes_Seconde_1,\"Coef 1\",a_20)),\"\")","v":""},"",{"$f":"IFERROR((SUMIF(Rangées_notes_Seconde_1,\"Trim 2\",a_20))/(SUMIF(Rangées_notes_Seconde_1,\"Coef 2\",a_20)),\"\")","v":""},"",{"$f":"IFERROR((SUMIF(Rangées_notes_Seconde_1,\"Trim 3\",a_20))/(SUMIF(Rangées_notes_Seconde_1,\"Coef 3\",a_20)),\"\")","v":""},"",null,null,"","",null,null,null,"","",""]
[21,null,null,{"$f":"IFERROR((SUMIF(Rangées_notes_Seconde_1,\"Note\",a_21))/(SUMIF(Rangées_notes_Seconde_1,\"Coeff\",a_21)),\"\")","v":""},"",{"$f":"IFERROR((SUMIF(Rangées_notes_Seconde_1,\"Trim 1\",a_21))/(SUMIF(Rangées_notes_Seconde_1,\"Coef 1\",a_21)),\"\")","v":""},"",{"$f":"IFERROR((SUMIF(Rangées_notes_Seconde_1,\"Trim 2\",a_21))/(SUMIF(Rangées_notes_Seconde_1,\"Coef 2\",a_21)),\"\")","v":""},"",{"$f":"IFERROR((SUMIF(Rangées_notes_Seconde_1,\"Trim 3\",a_21))/(SUMIF(Rangées_notes_Seconde_1,\"Coef 3\",a_21)),\"\")","v":""},"",null,null,"","",null,null,null,"","",""]
[22,null,null,{"$f":"IFERROR((SUMIF(Rangées_notes_Seconde_1,\"Note\",a_22))/(SUMIF(Rangées_notes_Seconde_1,\"Coeff\",a_22)),\"\")","v":""},"",{"$f":"IFERROR((SUMIF(Rangées_notes_Seconde_1,\"Trim 1\",a_22))/(SUMIF(Rangées_notes_Seconde_1,\"Coef 1\",a_22)),\"\")","v":""},"",{"$f":"IFERROR((SUMIF(Rangées_notes_Seconde_1,\"Trim 2\",a_22))/(SUMIF(Rangées_notes_Seconde_1,\"Coef 2\",a_22)),\"\")","v":""},"",{"$f":"IFERROR((SUMIF(Rangées_notes_Seconde_1,\"Trim 3\",a_22))/(SUMIF(Rangées_notes_Seconde_1,\"Coef 3\",a_22)),\"\")","v":""},"",null,null,"","",null,null,null,"","",""]
[23,null,null,{"$f":"IFERROR((SUMIF(Rangées_notes_Seconde_1,\"Note\",a_23))/(SUMIF(Rangées_notes_Seconde_1,\"Coeff\",a_23)),\"\")","v":""},"",{"$f":"IFERROR((SUMIF(Rangées_notes_Seconde_1,\"Trim 1\",a_23))/(SUMIF(Rangées_notes_Seconde_1,\"Coef 1\",a_23)),\"\")","v":""},"",{"$f":"IFERROR((SUMIF(Rangées_notes_Seconde_1,\"Trim 2\",a_23))/(SUMIF(Rangées_notes_Seconde_1,\"Coef 2\",a_23)),\"\")","v":""},"",{"$f":"IFERROR((SUMIF(Rangées_notes_Seconde_1,\"Trim 3\",a_23))/(SUMIF(Rangées_notes_Seconde_1,\"Coef 3\",a_23)),\"\")","v":""},"",null,null,"","",null,null,null,"","",""]
[24,null,null,{"$f":"IFERROR((SUMIF(Rangées_notes_Seconde_1,\"Note\",a_24))/(SUMIF(Rangées_notes_Seconde_1,\"Coeff\",a_24)),\"\")","v":""},"",{"$f":"IFERROR((SUMIF(Rangées_notes_Seconde_1,\"Trim 1\",a_24))/(SUMIF(Rangées_notes_Seconde_1,\"Coef 1\",a_24)),\"\")","v":""},"",{"$f":"IFERROR((SUMIF(Rangées_notes_Seconde_1,\"Trim 2\",a_24))/(SUMIF(Rangées_notes_Seconde_1,\"Coef 2\",a_24)),\"\")","v":""},"",{"$f":"IFERROR((SUMIF(Rangées_notes_Seconde_1,\"Trim 3\",a_24))/(SUMIF(Rangées_notes_Seconde_1,\"Coef 3\",a_24)),\"\")","v":""},"",null,null,"","",null,null,null,"","",""]
[25,null,null,{"$f":"IFERROR((SUMIF(Rangées_notes_Seconde_1,\"Note\",a_25))/(SUMIF(Rangées_notes_Seconde_1,\"Coeff\",a_25)),\"\")","v":""},"",{"$f":"IFERROR((SUMIF(Rangées_notes_Seconde_1,\"Trim 1\",a_25))/(SUMIF(Rangées_notes_Seconde_1,\"Coef 1\",a_25)),\"\")","v":""},"",{"$f":"IFERROR((SUMIF(Rangées_notes_Seconde_1,\"Trim 2\",a_25))/(SUMIF(Rangées_notes_Seconde_1,\"Coef 2\",a_25)),\"\")","v":""},"",{"$f":"IFERROR((SUMIF(Rangées_notes_Seconde_1,\"Trim 3\",a_25))/(SUMIF(Rangées_notes_Seconde_1,\"Coef 3\",a_25)),\"\")","v":""},"",null,null,"","",null,null,null,"","",""]
[26,null,null,{"$f":"IFERROR((SUMIF(Rangées_notes_Seconde_1,\"Note\",a_26))/(SUMIF(Rangées_notes_Seconde_1,\"Coeff\",a_26)),\"\")","v":""},"",{"$f":"IFERROR((SUMIF(Rangées_notes_Seconde_1,\"Trim 1\",a_26))/(SUMIF(Rangées_notes_Seconde_1,\"Coef 1\",a_26)),\"\")","v":""},"",{"$f":"IFERROR((SUMIF(Rangées_notes_Seconde_1,\"Trim 2\",a_26))/(SUMIF(Rangées_notes_Seconde_1,\"Coef 2\",a_26)),\"\")","v":""},"",{"$f":"IFERROR((SUMIF(Rangées_notes_Seconde_1,\"Trim 3\",a_26))/(SUMIF(Rangées_notes_Seconde_1,\"Coef 3\",a_26)),\"\")","v":""},"",null,null,"","",null,null,null,"","",""]
[27,null,null,{"$f":"IFERROR((SUMIF(Rangées_notes_Seconde_1,\"Note\",a_27))/(SUMIF(Rangées_notes_Seconde_1,\"Coeff\",a_27)),\"\")","v":""},"",{"$f":"IFERROR((SUMIF(Rangées_notes_Seconde_1,\"Trim 1\",a_27))/(SUMIF(Rangées_notes_Seconde_1,\"Coef 1\",a_27)),\"\")","v":""},"",{"$f":"IFERROR((SUMIF(Rangées_notes_Seconde_1,\"Trim 2\",a_27))/(SUMIF(Rangées_notes_Seconde_1,\"Coef 2\",a_27)),\"\")","v":""},"",{"$f":"IFERROR((SUMIF(Rangées_notes_Seconde_1,\"Trim 3\",a_27))/(SUMIF(Rangées_notes_Seconde_1,\"Coef 3\",a_27)),\"\")","v":""},"",null,null,"","",null,null,null,"","",""]
[28,null,null,{"$f":"IFERROR((SUMIF(Rangées_notes_Seconde_1,\"Note\",a_28))/(SUMIF(Rangées_notes_Seconde_1,\"Coeff\",a_28)),\"\")","v":""},"",{"$f":"IFERROR((SUMIF(Rangées_notes_Seconde_1,\"Trim 1\",a_28))/(SUMIF(Rangées_notes_Seconde_1,\"Coef 1\",a_28)),\"\")","v":""},"",{"$f":"IFERROR((SUMIF(Rangées_notes_Seconde_1,\"Trim 2\",a_28))/(SUMIF(Rangées_notes_Seconde_1,\"Coef 2\",a_28)),\"\")","v":""},"",{"$f":"IFERROR((SUMIF(Rangées_notes_Seconde_1,\"Trim 3\",a_28))/(SUMIF(Rangées_notes_Seconde_1,\"Coef 3\",a_28)),\"\")","v":""},"",null,null,"","",null,null,null,"","",""]
[29,null,null,{"$f":"IFERROR((SUMIF(Rangées_notes_Seconde_1,\"Note\",a_29))/(SUMIF(Rangées_notes_Seconde_1,\"Coeff\",a_29)),\"\")","v":""},"",{"$f":"IFERROR((SUMIF(Rangées_notes_Seconde_1,\"Trim 1\",a_29))/(SUMIF(Rangées_notes_Seconde_1,\"Coef 1\",a_29)),\"\")","v":""},"",{"$f":"IFERROR((SUMIF(Rangées_notes_Seconde_1,\"Trim 2\",a_29))/(SUMIF(Rangées_notes_Seconde_1,\"Coef 2\",a_29)),\"\")","v":""},"",{"$f":"IFERROR((SUMIF(Rangées_notes_Seconde_1,\"Trim 3\",a_29))/(SUMIF(Rangées_notes_Seconde_1,\"Coef 3\",a_29)),\"\")","v":""},"",null,null,"","",null,null,null,"","",""]
[30,null,null,{"$f":"IFERROR((SUMIF(Rangées_notes_Seconde_1,\"Note\",a_30))/(SUMIF(Rangées_notes_Seconde_1,\"Coeff\",a_30)),\"\")","v":""},"",{"$f":"IFERROR((SUMIF(Rangées_notes_Seconde_1,\"Trim 1\",a_30))/(SUMIF(Rangées_notes_Seconde_1,\"Coef 1\",a_30)),\"\")","v":""},"",{"$f":"IFERROR((SUMIF(Rangées_notes_Seconde_1,\"Trim 2\",a_30))/(SUMIF(Rangées_notes_Seconde_1,\"Coef 2\",a_30)),\"\")","v":""},"",{"$f":"IFERROR((SUMIF(Rangées_notes_Seconde_1,\"Trim 3\",a_30))/(SUMIF(Rangées_notes_Seconde_1,\"Coef 3\",a_30)),\"\")","v":""},"",null,null,"","",null,null,null,"","",""]
[31,null,null,{"$f":"IFERROR((SUMIF(Rangées_notes_Seconde_1,\"Note\",a_31))/(SUMIF(Rangées_notes_Seconde_1,\"Coeff\",a_31)),\"\")","v":""},"",{"$f":"IFERROR((SUMIF(Rangées_notes_Seconde_1,\"Trim 1\",a_31))/(SUMIF(Rangées_notes_Seconde_1,\"Coef 1\",a_31)),\"\")","v":""},"",{"$f":"IFERROR((SUMIF(Rangées_notes_Seconde_1,\"Trim 2\",a_31))/(SUMIF(Rangées_notes_Seconde_1,\"Coef 2\",a_31)),\"\")","v":""},"",{"$f":"IFERROR((SUMIF(Rangées_notes_Seconde_1,\"Trim 3\",a_31))/(SUMIF(Rangées_notes_Seconde_1,\"Coef 3\",a_31)),\"\")","v":""},"",null,null,"","",null,null,null,"","",""]
[32,null,null,{"$f":"IFERROR((SUMIF(Rangées_notes_Seconde_1,\"Note\",a_32))/(SUMIF(Rangées_notes_Seconde_1,\"Coeff\",a_32)),\"\")","v":""},"",{"$f":"IFERROR((SUMIF(Rangées_notes_Seconde_1,\"Trim 1\",a_32))/(SUMIF(Rangées_notes_Seconde_1,\"Coef 1\",a_32)),\"\")","v":""},"",{"$f":"IFERROR((SUMIF(Rangées_notes_Seconde_1,\"Trim 2\",a_32))/(SUMIF(Rangées_notes_Seconde_1,\"Coef 2\",a_32)),\"\")","v":""},"",{"$f":"IFERROR((SUMIF(Rangées_notes_Seconde_1,\"Trim 3\",a_32))/(SUMIF(Rangées_notes_Seconde_1,\"Coef 3\",a_33)),\"\")","v":""},"",null,null,"","",null,null,null,"","",""]
[33,null,null,{"$f":"IFERROR((SUMIF(Rangées_notes_Seconde_1,\"Note\",a_33))/(SUMIF(Rangées_notes_Seconde_1,\"Coeff\",a_33)),\"\")","v":""},"",{"$f":"IFERROR((SUMIF(Rangées_notes_Seconde_1,\"Trim 1\",a_33))/(SUMIF(Rangées_notes_Seconde_1,\"Coef 1\",a_33)),\"\")","v":""},"",{"$f":"IFERROR((SUMIF(Rangées_notes_Seconde_1,\"Trim 2\",a_33))/(SUMIF(Rangées_notes_Seconde_1,\"Coef 2\",a_33)),\"\")","v":""},"",{"$f":"IFERROR((SUMIF(Rangées_notes_Seconde_1,\"Trim 3\",a_33))/(SUMIF(Rangées_notes_Seconde_1,\"Coef 3\",a_33)),\"\")","v":""},"",null,null,"","",null,null,null,"","",""]
[34,null,null,{"$f":"IFERROR((SUMIF(Rangées_notes_Seconde_1,\"Note\",a_34))/(SUMIF(Rangées_notes_Seconde_1,\"Coeff\",a_34)),\"\")","v":""},"",{"$f":"IFERROR((SUMIF(Rangées_notes_Seconde_1,\"Trim 1\",a_34))/(SUMIF(Rangées_notes_Seconde_1,\"Coef 1\",a_34)),\"\")","v":""},"",{"$f":"IFERROR((SUMIF(Rangées_notes_Seconde_1,\"Trim 2\",a_34))/(SUMIF(Rangées_notes_Seconde_1,\"Coef 2\",a_34)),\"\")","v":""},"",{"$f":"IFERROR((SUMIF(Rangées_notes_Seconde_1,\"Trim 3\",a_34))/(SUMIF(Rangées_notes_Seconde_1,\"Coef 3\",a_34)),\"\")","v":""},"",null,null,"","",null,null,null,"","",""]
[35,null,null,{"$f":"IFERROR((SUMIF(Rangées_notes_Seconde_1,\"Note\",a_35))/(SUMIF(Rangées_notes_Seconde_1,\"Coeff\",a_35)),\"\")","v":""},"",{"$f":"IFERROR((SUMIF(Rangées_notes_Seconde_1,\"Trim 1\",a_35))/(SUMIF(Rangées_notes_Seconde_1,\"Coef 1\",a_35)),\"\")","v":""},"",{"$f":"IFERROR((SUMIF(Rangées_notes_Seconde_1,\"Trim 2\",a_35))/(SUMIF(Rangées_notes_Seconde_1,\"Coef 2\",a_35)),\"\")","v":""},"",{"$f":"IFERROR((SUMIF(Rangées_notes_Seconde_1,\"Trim 3\",a_35))/(SUMIF(Rangées_notes_Seconde_1,\"Coef 3\",a_35)),\"\")","v":""},"",null,null,"","",null,null,null,"","",""]
[36,null,null,{"$f":"IFERROR((SUMIF(Rangées_notes_Seconde_1,\"Note\",a_36))/(SUMIF(Rangées_notes_Seconde_1,\"Coeff\",a_36)),\"\")","v":""},"",{"$f":"IFERROR((SUMIF(Rangées_notes_Seconde_1,\"Trim 1\",a_36))/(SUMIF(Rangées_notes_Seconde_1,\"Coef 1\",a_36)),\"\")","v":""},"",{"$f":"IFERROR((SUMIF(Rangées_notes_Seconde_1,\"Trim 2\",a_36))/(SUMIF(Rangées_notes_Seconde_1,\"Coef 2\",a_36)),\"\")","v":""},"",{"$f":"IFERROR((SUMIF(Rangées_notes_Seconde_1,\"Trim 3\",a_36))/(SUMIF(Rangées_notes_Seconde_1,\"Coef 3\",a_36)),\"\")","v":""},"",null,null,"","",null,null,null,"","",""]
[37,null,null,{"$f":"IFERROR((SUMIF(Rangées_notes_Seconde_1,\"Note\",a_37))/(SUMIF(Rangées_notes_Seconde_1,\"Coeff\",a_37)),\"\")","v":""},"",{"$f":"IFERROR((SUMIF(Rangées_notes_Seconde_1,\"Trim 1\",a_37))/(SUMIF(Rangées_notes_Seconde_1,\"Coef 1\",a_37)),\"\")","v":""},"",{"$f":"IFERROR((SUMIF(Rangées_notes_Seconde_1,\"Trim 2\",a_37))/(SUMIF(Rangées_notes_Seconde_1,\"Coef 2\",a_37)),\"\")","v":""},"",{"$f":"IFERROR((SUMIF(Rangées_notes_Seconde_1,\"Trim 3\",a_37))/(SUMIF(Rangées_notes_Seconde_1,\"Coef 3\",a_37)),\"\")","v":""},"",null,null,"","",null,null,null,"","",""]
[38,null,null,{"$f":"IFERROR((SUMIF(Rangées_notes_Seconde_1,\"Note\",a_38))/(SUMIF(Rangées_notes_Seconde_1,\"Coeff\",a_38)),\"\")","v":""},"",{"$f":"IFERROR((SUMIF(Rangées_notes_Seconde_1,\"Trim 1\",a_38))/(SUMIF(Rangées_notes_Seconde_1,\"Coef 1\",a_38)),\"\")","v":""},"",{"$f":"IFERROR((SUMIF(Rangées_notes_Seconde_1,\"Trim 2\",a_38))/(SUMIF(Rangées_notes_Seconde_1,\"Coef 2\",a_38)),\"\")","v":""},"",{"$f":"IFERROR((SUMIF(Rangées_notes_Seconde_1,\"Trim 3\",a_38))/(SUMIF(Rangées_notes_Seconde_1,\"Coef 3\",a_38)),\"\")","v":""},"",null,null,"","",null,null,null,"","",""]
[39,null,null,{"$f":"IFERROR((SUMIF(Rangées_notes_Seconde_1,\"Note\",a_39))/(SUMIF(Rangées_notes_Seconde_1,\"Coeff\",a_39)),\"\")","v":""},"",{"$f":"IFERROR((SUMIF(Rangées_notes_Seconde_1,\"Trim 1\",a_39))/(SUMIF(Rangées_notes_Seconde_1,\"Coef 1\",a_39)),\"\")","v":""},"",{"$f":"IFERROR((SUMIF(Rangées_notes_Seconde_1,\"Trim 2\",a_39))/(SUMIF(Rangées_notes_Seconde_1,\"Coef 2\",a_39)),\"\")","v":""},"",{"$f":"IFERROR((SUMIF(Rangées_notes_Seconde_1,\"Trim 3\",a_39))/(SUMIF(Rangées_notes_Seconde_1,\"Coef 3\",a_39)),\"\")","v":""},"",null,null,"","",null,null,null,"","",""]
[40,null,null,{"$f":"IFERROR((SUMIF(Rangées_notes_Seconde_1,\"Note\",a_40))/(SUMIF(Rangées_notes_Seconde_1,\"Coeff\",a_40)),\"\")","v":""},"",{"$f":"IFERROR((SUMIF(Rangées_notes_Seconde_1,\"Trim 1\",a_40))/(SUMIF(Rangées_notes_Seconde_1,\"Coef 1\",a_40)),\"\")","v":""},"",{"$f":"IFERROR((SUMIF(Rangées_notes_Seconde_1,\"Trim 2\",a_40))/(SUMIF(Rangées_notes_Seconde_1,\"Coef 2\",a_40)),\"\")","v":""},"",{"$f":"IFERROR((SUMIF(Rangées_notes_Seconde_1,\"Trim 3\",a_40))/(SUMIF(Rangées_notes_Seconde_1,\"Coef 3\",a_40)),\"\")","v":""},"",null,null,"","",null,null,null,"","",""]
[null,null,null,1,1,1,1,1,1,1,1,1,1,1,1,1,1,1,0,1,1]
["Moyenne",null,null,{"$f":"IFERROR(SUM(D6:D45)/COUNT(D6:D45),\"\")","v":""},null,{"$f":"IFERROR(SUM(F6:F45)/COUNT(F6:F45),\"\")","v":""},null,{"$f":"IFERROR(SUM(H6:H45)/COUNT(H6:H45),\"\")","v":""},null,{"$f":"IFERROR(SUM(J6:J45)/COUNT(J6:J45),\"\")","v":""},null,null,null,{"$f":"IFERROR(SUM(N6:N45)/COUNT(N6:N45),\"\")","v":""}]
["Présent",null,"Min",{"$f":"IF(MIN(D6:D45)=0,\"\",MIN(D6:D45))","v":""},null,{"$f":"IF(MIN(F6:F45)=0,\"\",MIN(F6:F45))","v":""},null,{"$f":"IF(MIN(H6:H45)=0,\"\",MIN(H6:H45))","v":""},null,{"$f":"IF(MIN(J6:J45)=0,\"\",MIN(J6:J45))","v":""},null,null,null,{"$f":"IF(MIN(N6:N45)=0,\"\",MIN(N6:N45))","v":""}]
["Absent",null,"Max",{"$f":"IF(MAX(D6:D45)=0,\"\",MAX(D7:D46))","v":""},null,{"$f":"IF(MAX(F6:F45)=0,\"\",MAX(F7:F46))","v":""},null,{"$f":"IF(MAX(H6:H45)=0,\"\",MAX(H7:H46))","v":""},null,{"$f":"IF(MAX(J6:J45)=0,\"\",MAX(J7:J46))","v":""},null,null,null,{"$f":"IF(MAX(N6:N45)=0,\"\",MAX(N7:N46))","v":""}]